[Event "*** Titled Tuesday Blitz"]
[Site "Chess.com"]
[Date "2020.05.19"]
[Round "4"]
[White "GHANDEEVAM2003"]
[Black "Man-Chuk"]
[Result "0-1"]
[WhiteElo "2903"]
[BlackElo "2735"]
[TimeControl "180+1"]
[EndTime "12:42:13 PDT"]
[Termination "Man-Chuk won by resignation"]

1. Nf3 {[%clk 0:03:00.9]} 1... d5 {[%clk 0:02:59.6]} 2. c4 {[%clk 0:03:00.2]}
2... e6 {[%clk 0:02:59.3]} 3. g3 {[%clk 0:03:00.2]} 3... dxc4 {[%clk 0:02:59.7]}
4. Bg2 {[%clk 0:02:58.8]} 4... Nd7 {[%clk 0:03:00]} 5. Qa4 {[%clk 0:02:57]} 5...
a6 {[%clk 0:02:59.6]} 6. Qxc4 {[%clk 0:02:57.2]} 6... b5 {[%clk 0:02:59.5]} 7.
Qc2 {[%clk 0:02:57.3]} 7... Bb7 {[%clk 0:02:59.9]} 8. O-O {[%clk 0:02:57.8]}
8... c5 {[%clk 0:03:00]} 9. a4 {[%clk 0:02:58.2]} 9... Ngf6 {[%clk 0:02:57.5]}
10. d3 {[%clk 0:02:42.4]} 10... Be7 {[%clk 0:02:57.1]} 11. Nc3 {[%clk
0:02:41.4]} 11... Qb6 {[%clk 0:02:56.6]} 12. Be3 {[%clk 0:02:36.7]} 12... O-O
{[%clk 0:02:50.5]} 13. b4 {[%clk 0:02:33.1]} 13... Rac8 {[%clk 0:02:42.8]} 14.
axb5 {[%clk 0:02:17.7]} 14... axb5 {[%clk 0:02:41]} 15. Rfb1 {[%clk 0:02:16.3]}
15... Ng4 {[%clk 0:02:38.2]} 16. Qd2 {[%clk 0:01:53.8]} 16... Nxe3 {[%clk
0:02:30.6]} 17. Qxe3 {[%clk 0:01:54]} 17... Bf6 {[%clk 0:01:53.6]} 18. Qd2
{[%clk 0:01:01.9]} 18... cxb4 {[%clk 0:01:45.1]} 19. Ne4 {[%clk 0:01:02.3]}
19... Bxa1 {[%clk 0:01:42.4]} 20. Rxa1 {[%clk 0:01:03.2]} 20... Bxe4 {[%clk
0:01:36.8]} 21. dxe4 {[%clk 0:01:04.1]} 21... Nf6 {[%clk 0:01:30.7]} 22. Qxb4
{[%clk 0:00:51.1]} 22... Qc5 {[%clk 0:01:30.6]} 23. Rb1 {[%clk 0:00:47.7]} 23...
Qxb4 {[%clk 0:01:23.4]} 24. Rxb4 {[%clk 0:00:48.6]} 24... Rc1+ {[%clk
0:01:22.2]} 25. Bf1 {[%clk 0:00:49]} 25... Rb8 {[%clk 0:01:22.2]} 26. e3 {[%clk
0:00:47.7]} 26... Ra1 {[%clk 0:00:52.2]} 27. Kg2 {[%clk 0:00:43.1]} 27... Ra4
{[%clk 0:00:52.3]} 28. Rxb5 {[%clk 0:00:43.6]} 28... Rxb5 {[%clk 0:00:52.3]} 29.
Bxb5 {[%clk 0:00:44.5]} 29... Rxe4 {[%clk 0:00:52.2]} 30. Nd4 {[%clk 0:00:42.8]}
30... Re5 {[%clk 0:00:51.9]} 31. Be2 {[%clk 0:00:40.4]} 31... Ra5 {[%clk
0:00:50.8]} 32. h3 {[%clk 0:00:39.2]} 32... g6 {[%clk 0:00:49.1]} 33. g4 {[%clk
0:00:38.9]} 33... Kg7 {[%clk 0:00:47.9]} 34. Bf3 {[%clk 0:00:31.9]} 34... Ra2
{[%clk 0:00:47.3]} 35. Nc6 {[%clk 0:00:30.9]} 35... h5 {[%clk 0:00:44.2]} 36.
Kg3 {[%clk 0:00:29.5]} 36... h4+ {[%clk 0:00:41.2]} 37. Kg2 {[%clk 0:00:29.3]}
37... g5 {[%clk 0:00:41]} 38. Ne5 {[%clk 0:00:28.6]} 38... Ne8 {[%clk
0:00:37.1]} 39. Bc6 {[%clk 0:00:27.4]} 39... Nd6 {[%clk 0:00:36.8]} 40. Kg1
{[%clk 0:00:26.3]} 40... Kf6 {[%clk 0:00:36.1]} 41. Nd7+ {[%clk 0:00:25.3]}
41... Ke7 {[%clk 0:00:35.9]} 42. Ne5 {[%clk 0:00:26.2]} 42... f6 {[%clk
0:00:34.9]} 43. Nd3 {[%clk 0:00:25.2]} 43... Rd2 {[%clk 0:00:31.2]} 44. Ne1
{[%clk 0:00:22.8]} 44... Rd1 {[%clk 0:00:27.6]} 45. Kf1 {[%clk 0:00:22.8]} 45...
Rc1 {[%clk 0:00:27.9]} 46. Bf3 {[%clk 0:00:20.5]} 46... Nc4 {[%clk 0:00:28]} 47.
Ke2 {[%clk 0:00:21.1]} 47... Ne5 {[%clk 0:00:28.1]} 48. Be4 {[%clk 0:00:21.7]}
48... Ra1 {[%clk 0:00:23.1]} 49. Bg2 {[%clk 0:00:18.8]} 49... Ra2+ {[%clk
0:00:22.5]} 50. Kf1 {[%clk 0:00:19.2]} 50... Kd6 {[%clk 0:00:22.1]} 51. Be4
{[%clk 0:00:18.3]} 51... Nc4 {[%clk 0:00:21.6]} 52. Bd3 {[%clk 0:00:15.6]} 52...
Nd2+ {[%clk 0:00:21.2]} 53. Kg2 {[%clk 0:00:16.3]} 53... Ke5 {[%clk 0:00:17.7]}
54. Nc2 {[%clk 0:00:15.9]} 54... Ne4 {[%clk 0:00:15.9]} 55. Kf3 {[%clk
0:00:13.8]} 55... f5 {[%clk 0:00:16.2]} 56. gxf5 {[%clk 0:00:11]} 56... exf5
{[%clk 0:00:17.1]} 57. Kg2 {[%clk 0:00:11.5]} 57... Nc5 {[%clk 0:00:17.1]} 58.
Nb4 {[%clk 0:00:12]} 58... Rb2 {[%clk 0:00:17.2]} 59. Nc6+ {[%clk 0:00:11.7]}
59... Kd6 {[%clk 0:00:16.2]} 60. Bxf5 {[%clk 0:00:09]} 60... Kxc6 {[%clk
0:00:15.9]} 61. Kf3 {[%clk 0:00:09.9]} 61... Kd6 {[%clk 0:00:15.4]} 62. Kg4
{[%clk 0:00:10.2]} 62... Rxf2 {[%clk 0:00:15.1]} 63. Kxg5 {[%clk 0:00:10.7]}
63... Ke5 {[%clk 0:00:15.5]} 64. Bg4 {[%clk 0:00:11.1]} 64... Ne4+ {[%clk
0:00:13.8]} 65. Kxh4 {[%clk 0:00:11.5]} 65... Rf1 {[%clk 0:00:12.4]} 66. Kh5
{[%clk 0:00:11.5]} 66... Re1 {[%clk 0:00:12.5]} 67. Kg6 {[%clk 0:00:10]} 67...
Rxe3 {[%clk 0:00:13]} 68. Kf7 {[%clk 0:00:09.4]} 68... Ng5+ {[%clk 0:00:12.4]}
0-1

[Event "*** Titled Tuesday Blitz"]
[Site "Chess.com"]
[Date "2020.05.19"]
[Round "4"]
[White "Kopytkin"]
[Black "DanielDardha2005"]
[Result "0-1"]
[WhiteElo "2346"]
[BlackElo "2642"]
[TimeControl "180+1"]
[EndTime "12:42:13 PDT"]
[Termination "DanielDardha2005 won on time"]

1. e4 {[%clk 0:03:00.9]} 1... c5 {[%clk 0:02:59.5]} 2. c3 {[%clk 0:03:00.4]}
2... Nf6 {[%clk 0:02:59.1]} 3. e5 {[%clk 0:03:00.8]} 3... Nd5 {[%clk 0:02:59.3]}
4. Nf3 {[%clk 0:03:01.2]} 4... Nc6 {[%clk 0:02:58.1]} 5. d4 {[%clk 0:03:00.5]}
5... cxd4 {[%clk 0:02:59]} 6. cxd4 {[%clk 0:02:59.1]} 6... d6 {[%clk 0:02:58.7]}
7. Bc4 {[%clk 0:02:59.2]} 7... e6 {[%clk 0:02:58.2]} 8. O-O {[%clk 0:02:57.8]}
8... Be7 {[%clk 0:02:58]} 9. Nc3 {[%clk 0:02:51.3]} 9... Nxc3 {[%clk 0:02:57.4]}
10. bxc3 {[%clk 0:02:51.7]} 10... dxe5 {[%clk 0:02:58]} 11. dxe5 {[%clk
0:02:52.1]} 11... Qc7 {[%clk 0:02:58.2]} 12. Qe2 {[%clk 0:02:51.1]} 12... O-O
{[%clk 0:02:57.7]} 13. Re1 {[%clk 0:02:22.6]} 13... b6 {[%clk 0:02:55.2]} 14.
Bg5 {[%clk 0:02:21.6]} 14... Bb7 {[%clk 0:02:48.7]} 15. Bd3 {[%clk 0:02:19.5]}
15... Rfd8 {[%clk 0:02:46.7]} 16. Rad1 {[%clk 0:02:06.9]} 16... Na5 {[%clk
0:02:12.5]} 17. h4 {[%clk 0:01:59.3]} 17... h6 {[%clk 0:02:09.1]} 18. Bf4 {[%clk
0:01:51.9]} 18... Qxc3 {[%clk 0:02:06.3]} 19. Qe3 {[%clk 0:01:52.3]} 19... Qc5
{[%clk 0:01:57.6]} 20. Bxh6 {[%clk 0:01:45.4]} 20... Qxe3 {[%clk 0:01:57.7]} 21.
Bxe3 {[%clk 0:01:45.3]} 21... Rac8 {[%clk 0:01:54.4]} 22. Bg5 {[%clk 0:01:32]}
22... Kf8 {[%clk 0:01:49.2]} 23. Be2 {[%clk 0:01:11.2]} 23... Bd5 {[%clk
0:01:38.9]} 24. Bxe7+ {[%clk 0:00:42]} 24... Kxe7 {[%clk 0:01:39.8]} 25. Rd2
{[%clk 0:00:40.3]} 25... Nc6 {[%clk 0:01:25.6]} 26. Red1 {[%clk 0:00:38.1]}
26... Bxf3 {[%clk 0:01:23.2]} 27. Rxd8 {[%clk 0:00:35.3]} 27... Rxd8 {[%clk
0:01:24.1]} 28. Rxd8 {[%clk 0:00:25.8]} 28... Kxd8 {[%clk 0:01:25]} 29. Bxf3
{[%clk 0:00:25.9]} 29... Nxe5 {[%clk 0:01:25]} 30. Be2 {[%clk 0:00:26.6]} 30...
Ke7 {[%clk 0:01:22.3]} 31. f4 {[%clk 0:00:26.7]} 31... Ng6 {[%clk 0:01:21.8]}
32. g3 {[%clk 0:00:27.1]} 32... Kd6 {[%clk 0:01:21.4]} 33. Kf2 {[%clk
0:00:27.2]} 33... f5 {[%clk 0:01:19.9]} 34. Ke3 {[%clk 0:00:25.6]} 34... e5
{[%clk 0:01:15.8]} 35. h5 {[%clk 0:00:25.5]} 35... Ne7 {[%clk 0:01:13.1]} 36.
Bc4 {[%clk 0:00:17.6]} 36... Nd5+ {[%clk 0:01:10.3]} 37. Kf3 {[%clk 0:00:18]}
37... e4+ {[%clk 0:00:55.7]} 38. Kf2 {[%clk 0:00:17.5]} 38... Nf6 {[%clk
0:00:54.5]} 39. Be2 {[%clk 0:00:16.3]} 39... Kc5 {[%clk 0:00:50.7]} 40. Ke3
{[%clk 0:00:16.2]} 40... b5 {[%clk 0:00:47]} 41. g4 {[%clk 0:00:14.9]} 41...
fxg4 {[%clk 0:00:42.9]} 42. f5 {[%clk 0:00:14]} 42... a5 {[%clk 0:00:40.3]} 43.
Kf4 {[%clk 0:00:13.1]} 43... Kd4 {[%clk 0:00:32.2]} 44. Bxg4 {[%clk 0:00:11.8]}
44... Nxg4 {[%clk 0:00:25]} 45. Kxg4 {[%clk 0:00:12.7]} 45... e3 {[%clk
0:00:25.4]} 46. h6 {[%clk 0:00:12.1]} 46... e2 {[%clk 0:00:25.3]} 47. h7 {[%clk
0:00:09.9]} 47... e1=Q {[%clk 0:00:25.3]} 48. h8=Q {[%clk 0:00:10.4]} 48... Qe4+
{[%clk 0:00:22.1]} 49. Kg5 {[%clk 0:00:10.6]} 49... Qg2+ {[%clk 0:00:20.8]} 50.
Kf4 {[%clk 0:00:10.6]} 50... Qf2+ {[%clk 0:00:16.9]} 51. Kg4 {[%clk 0:00:11.3]}
51... Qg2+ {[%clk 0:00:13.6]} 52. Kf4 {[%clk 0:00:11.6]} 52... Kc4 {[%clk
0:00:12.8]} 53. Ke5 {[%clk 0:00:11.4]} 53... Qg5 {[%clk 0:00:11.3]} 54. Qg8+
{[%clk 0:00:11.4]} 54... Kb4 {[%clk 0:00:06.6]} 55. Qf8+ {[%clk 0:00:12.3]}
55... Ka4 {[%clk 0:00:05.7]} 56. Qf7 {[%clk 0:00:12.7]} 56... Qg3+ {[%clk
0:00:03.4]} 57. Kd4 {[%clk 0:00:12.1]} 57... Ka3 {[%clk 0:00:03.2]} 58. Qe7+
{[%clk 0:00:09.9]} 58... b4 {[%clk 0:00:03.4]} 59. Qe2 {[%clk 0:00:09.7]} 59...
a4 {[%clk 0:00:02.9]} 60. f6 {[%clk 0:00:09.3]} 60... Qc3+ {[%clk 0:00:02.8]}
61. Kd5 {[%clk 0:00:09]} 61... gxf6 {[%clk 0:00:03.7]} 62. Qc4 {[%clk
0:00:08.8]} 62... Qxc4+ {[%clk 0:00:03.6]} 63. Kxc4 {[%clk 0:00:09.1]} 63... b3
{[%clk 0:00:04.5]} 64. Kc3 {[%clk 0:00:08.9]} 64... bxa2 {[%clk 0:00:04.2]} 65.
Kc2 {[%clk 0:00:09.4]} 65... a1=Q {[%clk 0:00:04.2]} 66. Kd2 {[%clk 0:00:10.3]}
66... Qb2+ {[%clk 0:00:04.5]} 67. Kd3 {[%clk 0:00:11.2]} 67... Kb3 {[%clk
0:00:05.4]} 68. Ke4 {[%clk 0:00:11]} 68... a3 {[%clk 0:00:06.3]} 69. Kd5 {[%clk
0:00:11.4]} 69... a2 {[%clk 0:00:07.2]} 70. Kc5 {[%clk 0:00:12]} 70... a1=Q
{[%clk 0:00:08.1]} 71. Kb5 {[%clk 0:00:12.5]} 71... Qc3 {[%clk 0:00:06.5]} 0-1

[Event "*** Titled Tuesday Blitz"]
[Site "Chess.com"]
[Date "2020.05.19"]
[Round "4"]
[White "Jumbo"]
[Black "davidkalashian"]
[Result "1-0"]
[WhiteElo "2874"]
[BlackElo "2605"]
[TimeControl "180+1"]
[EndTime "12:42:22 PDT"]
[Termination "Jumbo won by resignation"]

1. d4 {[%clk 0:03:00.9]} 1... Nf6 {[%clk 0:02:59.3]} 2. Bf4 {[%clk 0:03:01.3]}
2... g6 {[%clk 0:02:57.9]} 3. e3 {[%clk 0:03:01.8]} 3... Bg7 {[%clk 0:02:57.5]}
4. Nf3 {[%clk 0:03:02.4]} 4... O-O {[%clk 0:02:56.3]} 5. Be2 {[%clk 0:03:02.9]}
5... d6 {[%clk 0:02:56.7]} 6. O-O {[%clk 0:03:03.2]} 6... Nbd7 {[%clk
0:02:54.3]} 7. c4 {[%clk 0:02:56.8]} 7... c5 {[%clk 0:02:50.5]} 8. Nc3 {[%clk
0:02:55.7]} 8... cxd4 {[%clk 0:02:49.7]} 9. exd4 {[%clk 0:02:55.5]} 9... b6
{[%clk 0:02:46.3]} 10. d5 {[%clk 0:02:55.4]} 10... Bb7 {[%clk 0:02:44.7]} 11. h3
{[%clk 0:02:49.8]} 11... a6 {[%clk 0:02:43.6]} 12. Re1 {[%clk 0:02:46.3]} 12...
Rc8 {[%clk 0:02:43.8]} 13. Rc1 {[%clk 0:02:39.5]} 13... Nc5 {[%clk 0:02:33.2]}
14. Bh2 {[%clk 0:02:35.8]} 14... Re8 {[%clk 0:02:26.1]} 15. Nd4 {[%clk
0:02:32.2]} 15... e5 {[%clk 0:01:45.8]} 16. dxe6 {[%clk 0:02:29.6]} 16... fxe6
{[%clk 0:01:31.9]} 17. Bf3 {[%clk 0:02:27.5]} 17... e5 {[%clk 0:01:26.9]} 18.
Nb3 {[%clk 0:02:11.5]} 18... Bxf3 {[%clk 0:01:19.6]} 19. Qxf3 {[%clk 0:02:12.4]}
19... Ne6 {[%clk 0:01:17.6]} 20. Qd3 {[%clk 0:02:02.8]} 20... Qc7 {[%clk
0:01:09.8]} 21. Nd2 {[%clk 0:01:56.8]} 21... Nd4 {[%clk 0:01:04.6]} 22. Nde4
{[%clk 0:01:40]} 22... Nxe4 {[%clk 0:00:51.9]} 23. Nxe4 {[%clk 0:01:37.6]} 23...
d5 {[%clk 0:00:39.5]} 24. Nd2 {[%clk 0:01:37.3]} 24... e4 {[%clk 0:00:34.1]} 25.
Qe3 {[%clk 0:01:13.3]} 25... Qf7 {[%clk 0:00:25.7]} 26. cxd5 {[%clk 0:01:08.5]}
26... Rxc1 {[%clk 0:00:26.6]} 27. Rxc1 {[%clk 0:01:08.8]} 27... Qxd5 {[%clk
0:00:27.1]} 28. Nc4 {[%clk 0:01:04.9]} 28... b5 {[%clk 0:00:24.4]} 29. Nd6
{[%clk 0:01:02.4]} 29... Nf5 {[%clk 0:00:20.1]} 30. Nxf5 {[%clk 0:00:50.9]}
30... Qxf5 {[%clk 0:00:21]} 31. b3 {[%clk 0:00:49.3]} 31... h5 {[%clk
0:00:20.5]} 32. Rd1 {[%clk 0:00:39.9]} 32... Re7 {[%clk 0:00:16.2]} 33. h4
{[%clk 0:00:33.8]} 33... Rd7 {[%clk 0:00:15.8]} 34. Rxd7 {[%clk 0:00:16.8]}
34... Qxd7 {[%clk 0:00:16.7]} 35. Bf4 {[%clk 0:00:17]} 35... Qd5 {[%clk
0:00:15.8]} 36. g3 {[%clk 0:00:16.4]} 36... Bd4 {[%clk 0:00:15.3]} 37. Qd2
{[%clk 0:00:16.9]} 37... Qc5 {[%clk 0:00:13.9]} 38. Qe2 {[%clk 0:00:15.7]} 38...
Kf7 {[%clk 0:00:12.9]} 39. Kg2 {[%clk 0:00:13.8]} 39... Qd5 {[%clk 0:00:12.2]}
40. Be3 {[%clk 0:00:14.3]} 40... Bxe3 {[%clk 0:00:12.2]} 41. Qxe3 {[%clk
0:00:15.2]} 41... Qc6 {[%clk 0:00:11.5]} 42. Kf1 {[%clk 0:00:13.9]} 42... Kg7
{[%clk 0:00:11.9]} 43. Qd4+ {[%clk 0:00:14]} 43... Kh7 {[%clk 0:00:12.1]} 44.
Ke2 {[%clk 0:00:14.5]} 44... Qc2+ {[%clk 0:00:11.8]} 45. Qd2 {[%clk 0:00:15.1]}
45... Qc6 {[%clk 0:00:11.1]} 46. Ke3 {[%clk 0:00:14.4]} 46... Qe6 {[%clk
0:00:09.4]} 47. Qd4 {[%clk 0:00:13.6]} 47... Qc6 {[%clk 0:00:05.8]} 48. Qxe4
{[%clk 0:00:13.6]} 48... Qc1+ {[%clk 0:00:06.2]} 49. Kf3 {[%clk 0:00:11.9]}
49... Qd2 {[%clk 0:00:06.7]} 50. Qe7+ {[%clk 0:00:10.4]} 50... Kh8 {[%clk
0:00:06.8]} 51. Qe6 {[%clk 0:00:10.8]} 51... Qxa2 {[%clk 0:00:04.2]} 52. Qxg6
{[%clk 0:00:08.3]} 52... Qxb3+ {[%clk 0:00:04.5]} 53. Kg2 {[%clk 0:00:08.6]}
53... b4 {[%clk 0:00:05]} 54. Qxh5+ {[%clk 0:00:08.2]} 54... Kg7 {[%clk
0:00:05.9]} 55. Qg5+ {[%clk 0:00:08.5]} 55... Kh7 {[%clk 0:00:06.8]} 56. h5
{[%clk 0:00:09]} 56... Qd3 {[%clk 0:00:06]} 57. Qe7+ {[%clk 0:00:09]} 57... Kh6
{[%clk 0:00:05.7]} 58. Qxb4 {[%clk 0:00:09.4]} 58... Kxh5 {[%clk 0:00:06.2]} 59.
Qc5+ {[%clk 0:00:09.6]} 59... Kg6 {[%clk 0:00:05.7]} 60. g4 {[%clk 0:00:09.3]}
60... Qe4+ {[%clk 0:00:05.2]} 61. Kg3 {[%clk 0:00:09]} 61... Qd3+ {[%clk
0:00:06.1]} 62. f3 {[%clk 0:00:09.5]} 62... Kg7 {[%clk 0:00:06.1]} 63. Qe5+
{[%clk 0:00:09.5]} 63... Kh7 {[%clk 0:00:07]} 64. Qc7+ {[%clk 0:00:07.6]} 64...
Kg6 {[%clk 0:00:06.7]} 65. Qb6+ {[%clk 0:00:07.9]} 65... Kh7 {[%clk 0:00:06.2]}
66. Qc5 {[%clk 0:00:08.4]} 66... Kg8 {[%clk 0:00:07.1]} 67. Qg5+ {[%clk
0:00:07.7]} 67... Kf7 {[%clk 0:00:06.4]} 68. Qe5 {[%clk 0:00:07.5]} 68... Qb5
{[%clk 0:00:05.2]} 69. Qxb5 {[%clk 0:00:07.1]} 69... Kg8 {[%clk 0:00:06.1]} 70.
Qxa6 {[%clk 0:00:06.5]} 1-0

[Event "*** Titled Tuesday Blitz"]
[Site "Chess.com"]
[Date "2020.05.19"]
[Round "4"]
[White "Aikiigm"]
[Black "Pultis"]
[Result "1-0"]
[WhiteElo "2525"]
[BlackElo "2754"]
[TimeControl "180+1"]
[EndTime "12:42:27 PDT"]
[Termination "Aikiigm won by checkmate"]

1. d4 {[%clk 0:03:00.9]} 1... Nf6 {[%clk 0:02:59.9]} 2. g3 {[%clk 0:02:56.1]}
2... g6 {[%clk 0:02:59.8]} 3. Bg2 {[%clk 0:02:55.1]} 3... d5 {[%clk 0:03:00.4]}
4. a4 {[%clk 0:02:54.1]} 4... a5 {[%clk 0:02:59.7]} 5. Nf3 {[%clk 0:02:53.1]}
5... Bg7 {[%clk 0:02:59.5]} 6. O-O {[%clk 0:02:52.8]} 6... O-O {[%clk
0:03:00.1]} 7. Bf4 {[%clk 0:02:53]} 7... Bf5 {[%clk 0:02:57.6]} 8. c3 {[%clk
0:02:52.5]} 8... c6 {[%clk 0:02:52.8]} 9. Qb3 {[%clk 0:02:52]} 9... Qc8 {[%clk
0:02:50.9]} 10. Nbd2 {[%clk 0:02:51.2]} 10... Ne4 {[%clk 0:02:49.6]} 11. Rfc1
{[%clk 0:02:49.3]} 11... Nd7 {[%clk 0:02:49.2]} 12. c4 {[%clk 0:02:48.5]} 12...
dxc4 {[%clk 0:02:50.1]} 13. Nxc4 {[%clk 0:02:47.4]} 13... Be6 {[%clk 0:02:45.4]}
14. Qc2 {[%clk 0:02:37.5]} 14... Nef6 {[%clk 0:02:37.7]} 15. Ng5 {[%clk
0:02:35.4]} 15... Bxc4 {[%clk 0:02:35.2]} 16. Qxc4 {[%clk 0:02:36.3]} 16... Nb6
{[%clk 0:02:32.3]} 17. Qb3 {[%clk 0:02:33.5]} 17... Nfd5 {[%clk 0:02:32.2]} 18.
Nf3 {[%clk 0:02:18.5]} 18... Nxf4 {[%clk 0:02:30.4]} 19. gxf4 {[%clk 0:02:19.4]}
19... Nd5 {[%clk 0:02:30.5]} 20. e3 {[%clk 0:02:19.5]} 20... e6 {[%clk
0:02:29.1]} 21. Ne5 {[%clk 0:02:18.4]} 21... Rd8 {[%clk 0:02:24.8]} 22. Nc4
{[%clk 0:02:17.9]} 22... Qc7 {[%clk 0:02:24.1]} 23. Rd1 {[%clk 0:02:07.6]} 23...
h5 {[%clk 0:02:21.9]} 24. Rac1 {[%clk 0:02:07]} 24... Bf8 {[%clk 0:02:17.8]} 25.
Ne5 {[%clk 0:01:56.4]} 25... Bd6 {[%clk 0:02:06.3]} 26. Be4 {[%clk 0:01:51.6]}
26... Kg7 {[%clk 0:02:04.1]} 27. Kh1 {[%clk 0:01:50.2]} 27... Ra6 {[%clk
0:02:00.2]} 28. Nc4 {[%clk 0:01:48.4]} 28... Bb4 {[%clk 0:01:57.2]} 29. Rg1
{[%clk 0:01:47.9]} 29... Nf6 {[%clk 0:01:54.1]} 30. Bf3 {[%clk 0:01:45]} 30...
Ng4 {[%clk 0:01:51.4]} 31. Bxg4 {[%clk 0:01:43.2]} 31... hxg4 {[%clk 0:01:52.3]}
32. Rxg4 {[%clk 0:01:43.2]} 32... Rh8 {[%clk 0:01:50.6]} 33. Kg2 {[%clk
0:01:42.9]} 33... b5 {[%clk 0:01:44.2]} 34. Ne5 {[%clk 0:01:41.4]} 34... bxa4
{[%clk 0:01:43.2]} 35. Qxa4 {[%clk 0:01:41.4]} 35... c5 {[%clk 0:01:42.4]} 36.
dxc5 {[%clk 0:01:38.3]} 36... Bxc5 {[%clk 0:01:36]} 37. Qb5 {[%clk 0:01:31.9]}
37... Rb6 {[%clk 0:01:25.7]} 38. Qxc5 {[%clk 0:01:26.8]} 38... Qb7+ {[%clk
0:01:26.2]} 39. Kg1 {[%clk 0:01:26]} 39... Rd8 {[%clk 0:01:14.6]} 40. Qc3 {[%clk
0:01:21.7]} 40... Rb3 {[%clk 0:01:06.4]} 41. Qc7 {[%clk 0:01:18.7]} 41... Rd1+
{[%clk 0:01:04.7]} 42. Rxd1 {[%clk 0:01:15.1]} 42... Qxc7 {[%clk 0:01:05.6]} 43.
Rd7 {[%clk 0:01:14]} 43... Qc2 {[%clk 0:00:42.8]} 44. Rxf7+ {[%clk 0:01:11.9]}
44... Kg8 {[%clk 0:00:43.7]} 45. Rf6 {[%clk 0:01:07.5]} 45... Qb1+ {[%clk
0:00:34.9]} 46. Kg2 {[%clk 0:01:06.5]} 46... Qe4+ {[%clk 0:00:35.8]} 47. Kg3
{[%clk 0:01:04]} 47... Rb7 {[%clk 0:00:17.9]} 48. Rfxg6+ {[%clk 0:01:01.7]}
48... Kf8 {[%clk 0:00:18.2]} 49. Rg8+ {[%clk 0:01:01.1]} 49... Ke7 {[%clk
0:00:18.7]} 50. R4g7+ {[%clk 0:00:58.6]} 50... Kd6 {[%clk 0:00:19.1]} 51. Rd8+
{[%clk 0:00:56.3]} 51... Kc5 {[%clk 0:00:18.4]} 52. Rg5 {[%clk 0:00:47.3]} 52...
Kb6 {[%clk 0:00:11.8]} 53. Rd6+ {[%clk 0:00:45.8]} 53... Kc7 {[%clk 0:00:06.1]}
54. Rxe6 {[%clk 0:00:42.7]} 54... Qh1 {[%clk 0:00:05.5]} 55. Rg7+ {[%clk
0:00:39.8]} 55... Kd8 {[%clk 0:00:04.1]} 56. Rg8+ {[%clk 0:00:37.1]} 56... Kc7
{[%clk 0:00:03.8]} 57. Re7+ {[%clk 0:00:36.5]} 57... Kb6 {[%clk 0:00:03.6]} 58.
Rg6+ {[%clk 0:00:36]} 58... Ka7 {[%clk 0:00:04.1]} 59. Nc6+ {[%clk 0:00:35]}
59... Ka6 {[%clk 0:00:01.9]} 60. Nb8+ {[%clk 0:00:33.2]} 60... Ka7 {[%clk
0:00:01.9]} 61. Nc6+ {[%clk 0:00:32.7]} 61... Ka6 {[%clk 0:00:02.4]} 62. Nd4+
{[%clk 0:00:27]} 62... Ka7 {[%clk 0:00:02.5]} 63. Ree6 {[%clk 0:00:27.1]} 63...
Qg1+ {[%clk 0:00:02.2]} 64. Kh3 {[%clk 0:00:26.8]} 64... Qf1+ {[%clk 0:00:02.6]}
65. Kg4 {[%clk 0:00:27]} 65... Qg1+ {[%clk 0:00:02.5]} 66. Kf5 {[%clk
0:00:25.9]} 66... Rf7+ {[%clk 0:00:02.9]} 67. Ke5 {[%clk 0:00:24.2]} 67... Qb1
{[%clk 0:00:02.9]} 68. Ra6+ {[%clk 0:00:23.6]} 68... Kb7 {[%clk 0:00:03.4]} 69.
Rgb6+ {[%clk 0:00:22.4]} 69... Kc8 {[%clk 0:00:03.9]} 70. Ra8+ {[%clk
0:00:21.1]} 70... Kc7 {[%clk 0:00:04.3]} 71. Rc6+ {[%clk 0:00:21.1]} 71... Kb7
{[%clk 0:00:04.3]} 72. Raa6 {[%clk 0:00:20.5]} 72... Re7+ {[%clk 0:00:04.7]} 73.
Kd6 {[%clk 0:00:20.4]} 73... Qh7 {[%clk 0:00:04.7]} 74. Rab6+ {[%clk 0:00:19.5]}
74... Ka8 {[%clk 0:00:05.2]} 75. Ra6+ {[%clk 0:00:18.3]} 75... Kb7 {[%clk
0:00:05.5]} 76. Rab6+ {[%clk 0:00:17.9]} 76... Ka8 {[%clk 0:00:05.7]} 77. Ra6+
{[%clk 0:00:11.4]} 77... Kb8 {[%clk 0:00:05.8]} 78. Rcb6+ {[%clk 0:00:11.7]}
78... Rb7 {[%clk 0:00:06.2]} 79. Nc6+ {[%clk 0:00:11.8]} 79... Kc8 {[%clk
0:00:06.6]} 80. Ra8+ {[%clk 0:00:12.1]} 80... Rb8 {[%clk 0:00:07.5]} 81. Raxb8#
{[%clk 0:00:11.8]} 1-0